bitfinex/quotes_ETHUSD_20240811
["timestamp","ask_amount","ask_price","bid_price","bid_amount"]
[1723414997663,0.1,2562.0,2561.8,3.9035]
[1723414997856,0.1,2562.0,2561.7,3.90355]
[1723414998157,0.1,2562.0,2561.5,4.66527886]
[1723414998158,0.1,2561.9,2561.5,3.90381]
[1723414998383,0.1,2561.8,2561.3,3.90417]
[1723414998698,0.1,2561.4,2561.1,3.9045]
[1723414998892,0.1,2561.4,2561.1,3.90445]
[1723414999190,0.2,2561.9,2561.4,3.90397]
[1723414999396,0.1,2561.5,2561.4,3.90397]
[1723414999556,0.1,2561.5,2561.4,3.9820396]
[1723414999951,0.1,2561.6,2561.5,3.90388]
[1723415000146,0.1,2561.6,2561.2,3.90433]
[1723415000147,0.1,2561.6,2561.2,4.3338425]
[1723415000359,0.1,2561.3,2561.0,3.90464]
[1723415000559,0.1,2561.4,2561.2,7.80873]
[1723415000778,0.1,2561.4,2561.2,3.90432]
[1723415000976,0.1,2561.3,2561.0,7.80923]
[1723415001184,0.1,2561.3,2561.0,4.685513]
[1723415001387,0.1,2561.4,2561.0,4.685513]
[1723415001695,0.1,2561.8,2561.4,3.90397]
[1723415001902,0.1,2561.4,2560.7,6.27783]
[1723415002068,0.1,2561.4,2561.1,3.90445]
[1723415002386,0.1,2561.9,2561.3,3.90426]
[1723415002562,0.1,2561.9,2561.8,3.9035]
[1723415002767,0.1,2561.9,2561.6,3.90367]
[1723415002768,0.2,2561.9,2561.6,3.90367]
[1723415002986,0.1,2561.7,2561.4,3.90405]
[1723415003286,0.1,2561.4,2561.0,3.9046]
[1723415003495,0.07803026,2561.9,2561.0,1.0702813]
[1723415003496,0.1,2561.9,2561.0,1.0702813]
[1723415003701,0.2,2561.9,2561.6,3.90373]
[1723415003987,7.27,2562.2,2561.7,0.0780735]
[1723415004148,0.1,2562.4,2561.7,3.8960735]
[1723415004354,0.1,2562.4,2562.1,3.90304]
[1723415004551,0.1,2562.4,2562.0,3.90311]
[1723415004754,19.97,2562.6,2562.1,0.07805363]
[1723415004989,0.1,2563.0,2562.4,3.9025]
[1723415005202,0.1,2562.8,2562.4,3.9025]
[1723415005352,0.1,2562.8,2562.4,3.90248]
[1723415005696,0.1,2562.8,2562.4,7.80496]
[1723415006070,0.1,2562.8,2562.5,3.90241]
[1723415006267,0.1,2562.5,2562.1,2.4518]
[1723415006467,0.1,2562.5,2562.2,3.90279]
[1723415007264,0.1,2562.8,2562.4,3.90249]
[1723415007467,0.1,2562.7,2562.2,3.90283]
[1723415007713,0.1,2562.4,2562.2,3.90283]
[1723415007891,0.1,2562.7,2562.2,3.90283]
[1723415008282,0.2,2562.7,2562.4,3.90254]
[1723415008511,0.1,2562.7,2562.4,3.90254]
[1723415008718,0.1,2562.7,2562.3,3.90273]
[1723415008919,0.1,2562.3,2562.2,3.90283]
[1723415009118,0.07803026,2562.7,2562.2,3.90283]
[1723415009119,0.1,2562.5,2562.2,3.90283]
[1723415009323,0.1,2562.5,2562.3,3.90264]
[1723415010030,0.1,2562.7,2562.4,3.90256]
[1723415010326,0.1,2562.9,2562.4,0.07804406]
[1723415010533,0.1,2562.7,2562.5,3.90236]
[1723415010688,0.1,2562.7,2562.3,7.80527]
[1723415011230,0.1,2562.3,2562.1,3.90297]
[1723415011391,0.1,2562.1,2561.9,3.90323]
[1723415011787,0.1,2562.1,2561.7,3.90352]
[1723415012017,0.1,2562.1,2561.9,3.90321]
[1723415012327,0.2,2562.1,2561.7,3.90356]
[1723415012515,0.2,2562.1,2561.9,3.90325]
[1723415012722,0.1,2562.1,2561.5,1.005262]
[1723415013025,0.1,2562.1,2561.9,3.90324]
[1723415013026,0.1,2562.0,2561.9,3.90324]
[1723415013229,0.1,2562.0,2561.7,3.90358]
[1723415013230,0.1,2562.0,2561.7,3.90353]
[1723415013546,0.1,2562.0,2561.4,2.3304]
[1723415013860,0.1,2562.0,2561.8,3.90349]
[1723415013994,0.1,2562.0,2561.6,3.9037]
[1723415014190,0.1,2561.9,2561.8,3.90343]
[1723415014536,0.2,2562.1,2561.8,3.90343]
[1723415014732,0.07803026,2562.3,2561.8,2.827343]
[1723415014921,7.37,2562.5,2562.4,3.90259]
[1723415015230,7.37,2562.5,2561.9,0.07804792]
[1723415015231,0.2,2562.5,2562.3,3.90272]
[1723415015430,0.1,2562.3,2562.1,3.90296]
[1723415015602,0.1,2562.3,2562.1,3.90295]
[1723415015795,0.2,2562.7,2562.1,3.90296]
[1723415015995,0.2,2562.7,2562.5,3.90232]
[1723415016197,0.2,2562.9,2562.5,3.90232]
[1723415016435,0.2,2562.5,2562.2,3.90284]
[1723415016735,0.2,2562.7,2562.3,3.90263]
[1723415016947,0.1,2562.5,2562.3,3.90263]
[1723415017112,0.2,2562.7,2561.9,3.9033]
[1723415017457,0.1,2561.8,2561.6,3.90376]
[1723415017599,0.1,2562.0,2561.8,3.90341]
[1723415018036,0.1,2562.0,2561.7,3.9035]
[1723415018037,0.2,2562.0,2561.7,3.9035]
[1723415018224,0.1,2561.8,2561.5,3.90386]
[1723415018424,0.1,2561.7,2561.5,3.90386]
[1723415018624,0.1,2561.8,2561.5,3.90386]
[1723415018927,0.2,2561.8,2561.5,3.90386]
[1723415019645,0.2,2561.8,2561.6,3.90373]
[1723415020200,0.1,2561.2,2560.9,3.9048]
[1723415020398,0.1,2561.2,2560.5,2.437]
[1723415020399,0.1,2561.2,2560.8,3.90493]
[1723415020597,0.1,2561.0,2560.8,3.90493]
[1723415021401,0.1,2561.0,2560.6,3.90531]
[1723415021402,0.1,2560.9,2560.6,3.90522]
[1723415021842,0.1,2561.0,2560.6,3.90522]
[1723415021843,0.1,2560.8,2560.6,3.90522]
[1723415022156,0.1,2560.8,2560.6,3.90528]
[1723415022329,0.1,2560.7,2560.4,3.90554]
[1723415022529,0.1,2561.2,2560.9,3.90487]
[1723415022705,9.7936,2561.4,2561.1,3.9045]
[1723415022908,0.1,2561.1,2560.9,3.90475]
[1723415023338,0.1,2561.0,2560.9,3.90475]
[1723415023706,0.1,2561.3,2561.0,3.90472]
[1723415023907,0.2,2561.1,2560.8,7.80979]
[1723415024148,0.2,2561.1,2560.9,3.90483]
[1723415024330,11.80096,2561.4,2561.0,7.80933]
[1723415024331,0.2,2561.3,2561.0,7.80933]
[1723415024525,0.2,2561.3,2561.0,3.90461]
[1723415024768,0.1,2561.3,2561.0,3.90461]
[1723415025042,0.2,2561.3,2561.0,3.90461]
[1723415025254,0.1,2561.0,2560.8,3.90493]
[1723415025915,0.2,2561.1,2560.8,3.90493]
[1723415026102,0.2,2561.1,2560.4,0.390554]
[1723415026103,0.1,2560.6,2560.4,3.90555]
[1723415026305,0.1,2560.4,2560.2,3.90585]
[1723415026536,0.1,2560.7,2560.2,3.90584]
[1723415026734,9.7936,2561.2,2560.8,3.90492]
[1723415027042,9.7936,2561.2,2560.3,3.98383709]
[1723415027043,0.1,2560.9,2560.4,0.07809218]
[1723415027241,0.1,2561.1,2560.8,3.90492]
[1723415027459,0.2,2560.9,2560.8,3.90492]
[1723415027661,0.2,2560.9,2560.5,3.90538]
[1723415027941,0.1,2560.5,2560.3,3.90569]
[1723415028140,0.1,2560.5,2560.3,7.81133]
[1723415028340,7.27,2561.0,2560.9,3.90487]
[1723415028650,0.2,2561.4,2561.1,3.90447]
[1723415028843,7.27,2561.5,2561.3,3.90426]
[1723415029144,8.24936,2561.5,2561.3,3.90426]
[1723415029345,7.27,2561.5,2561.4,3.90411]
[1723415029650,0.1,2561.5,2561.4,3.90402]
[1723415030251,0.1,2561.7,2561.4,3.90402]
[1723415030559,0.1,2562.4,2561.6,3.90379]
[1723415030703,0.1,2562.4,2562.1,3.90293]
[1723415031254,0.1,2562.6,2562.4,3.90256]
[1723415031447,0.1,2562.6,2562.2,0.07805237]
[1723415031448,0.1,2562.6,2562.2,3.98085237]
[1723415031688,0.1,2562.6,2562.2,3.9028]
[1723415031983,0.1,2562.5,2562.3,3.90262]
[1723415032182,0.1,2562.3,2561.9,3.90333]
[1723415032352,0.1,2562.2,2562.0,3.9032]
[1723415032676,0.1,2562.2,2562.1,3.90304]
[1723415032895,0.1,2562.6,2562.2,3.90285]
[1723415032896,0.1,2562.4,2562.2,3.90285]
[1723415033035,0.1,2562.3,2562.2,3.90285]
[1723415033239,0.1,2562.4,2562.2,3.90285]
[1723415033481,0.1,2562.4,2562.2,3.90278]
[1723415033978,0.1,2562.7,2562.2,3.90278]
[1723415034165,0.1,2562.6,2562.3,0.07805362]
[1723415034553,0.370227,2562.7,2562.6,3.90228]
[1723415034867,0.1,2562.7,2562.6,7.80456]
[1723415035051,0.1,2562.7,2562.4,7.80497]
[1723415035259,0.1,2562.6,2562.5,3.90243]
[1723415035452,0.1,2562.6,2562.4,3.90247]
[1723415035653,0.1,2562.6,2562.5,3.90243]
[1723415035853,0.1,2562.6,2562.5,7.80486]
[1723415036181,0.1,2562.6,2562.5,3.90243]
[1723415036489,0.1,2562.6,2562.4,3.98049166]
[1723415036781,0.2,2562.5,2562.3,3.90269]
[1723415036958,0.2,2562.7,2562.4,0.07804176]
[1723415037163,0.2,2562.7,2562.5,3.90243]
[1723415037866,0.1,2562.7,2562.5,3.90243]
[1723415038181,0.1,2562.7,2562.6,3.90228]
[1723415039544,0.1,2562.7,2562.5,3.90243]
[1723415039745,0.1,2562.7,2562.3,3.90267]
[1723415039746,0.2,2562.6,2562.3,3.90265]
[1723415039988,0.1,2562.4,2562.3,3.90265]
[1723415040287,0.1,2562.4,2561.8,7.72147]
[1723415040288,0.1,2562.3,2562.2,3.90288]
[1723415040450,0.1,2561.9,2561.3,4.2079]
[1723415040654,0.1,2562.6,2560.5,2.258]
[1723415040655,0.1,2561.2,2560.5,2.258]
[1723415040984,0.1,2561.1,2561.0,3.90459]
[1723415041146,0.1,2561.2,2561.0,3.90472]
[1723415041354,0.1,2561.1,2561.0,3.90472]
[1723415041573,0.1,2561.1,2560.7,7.81012]
[1723415041777,0.1,2561.0,2560.9,3.90483]
[1723415041986,0.2,2561.0,2560.9,3.90483]
[1723415042164,0.1,2561.0,2560.9,3.90483]
[1723415042371,0.1,2561.0,2560.9,8.590696]
[1723415042688,0.1,2561.5,2561.2,3.90434]
[1723415042888,0.1,2561.8,2561.3,0.07807335]
[1723415043093,0.1,2561.8,2561.5,3.90384]
[1723415043385,0.1,2561.5,2561.3,7.88639335]
[1723415043812,0.2,2561.8,2561.5,3.90396]
[1723415043954,0.1,2561.6,2561.4,3.90407]
[1723415044153,0.2,2561.4,2561.1,3.90453]
[1723415044391,0.1,2561.1,2561.0,3.90472]
[1723415044693,2.2956,2561.4,2561.1,3.90454]
[1723415044892,2.2956,2561.4,2561.3,3.90423]
[1723415044893,0.2,2561.4,2561.3,3.90423]
[1723415045096,0.2,2561.4,2561.3,3.98230668]
[1723415045385,0.1,2561.6,2561.3,3.98230673]
[1723415045590,7.47,2562.0,2561.7,3.90365]
[1723415045763,0.1,2561.5,2561.2,3.90429]
[1723415046090,0.1,2561.5,2561.1,3.90452]
[1723415046091,0.1,2561.3,2561.1,3.90452]
[1723415046293,0.2,2561.3,2560.8,7.72296]
[1723415046494,0.2,2561.3,2561.1,3.90456]
[1723415046991,0.2,2561.3,2561.1,3.90448]
[1723415047212,0.2,2561.3,2561.1,3.90447]
[1723415047372,0.1,2561.1,2561.0,0.07808262]
[1723415047568,0.1,2561.1,2561.0,3.98280262]
[1723415047889,0.2,2561.3,2561.0,3.98272262]
[1723415048297,0.2,2561.3,2561.0,7.88731262]
[1723415048495,0.2,2561.3,2561.0,3.98269262]
[1723415048695,0.2,2561.1,2560.9,3.98293271]
[1723415048902,0.2,2561.1,2561.0,3.90462]
[1723415049059,0.2,2561.3,2561.0,3.90462]
[1723415049260,0.1,2561.5,2561.1,3.90454]
[1723415049457,0.1,2561.3,2561.1,3.90454]
[1723415049821,0.2,2561.3,2561.2,3.90433]
[1723415051172,0.2,2561.3,2561.1,3.90446]
[1723415051384,0.2,2561.3,2561.1,7.80894]
[1723415051697,0.2,2561.3,2561.0,3.90461]
[1723415051907,0.2,2561.1,2560.6,4.46792368]
[1723415052111,0.1,2560.9,2560.8,3.90492]
[1723415052459,0.1,2561.5,2560.8,2.56888858]
[1723415052661,0.1,2561.3,2561.2,3.90426]
[1723415052954,0.1,2561.3,2561.0,3.90468]
[1723415052955,0.1,2561.3,2561.1,3.98254726]
[1723415053255,0.1,2560.9,2560.6,3.90532]
[1723415053457,0.1,2560.9,2560.8,3.90502]
[1723415053761,0.1,2561.1,2561.0,3.90472]
[1723415054173,0.1,2561.1,2560.9,3.90476]
[1723415054507,0.1,2561.1,2561.0,3.90472]
[1723415054818,0.1,2561.1,2560.9,0.07808637]
[1723415054986,0.1,2561.3,2561.0,3.90472]
[1723415055166,0.1,2561.2,2561.1,3.98265137]
[1723415055364,0.1,2561.0,2560.8,7.80989]
[1723415055575,0.1,2561.3,2561.0,3.90458]
[1723415055806,0.1,2561.5,2561.1,0.07808146]
[1723415055999,0.1,2561.5,2561.1,3.98251146]
[1723415056000,0.1,2561.3,2561.1,3.98251146]
[1723415056291,0.1,2561.3,2561.2,0.07807864]
[1723415056494,0.2,2561.3,2560.6,3.98336087]
[1723415056694,0.1,2561.1,2560.6,4.67732887]
[1723415056906,0.2,2561.1,2560.7,3.90504]
[1723415057205,0.2,2561.1,2560.9,3.90483]
[1723415057694,0.1,2561.0,2560.8,3.90493]
[1723415058001,0.1,2561.0,2560.9,3.90487]
[1723415058362,0.2,2561.0,2560.9,3.90487]
[1723415058566,0.1,2560.8,2560.7,3.90506]
[1723415059475,0.1,2560.8,2560.6,4.599268]
[1723415059688,0.1,2560.8,2560.6,3.90522]
[1723415060409,0.1,2560.8,2559.6,7.72474]
[1723415060699,0.1,2560.8,2559.6,3.818]
[1723415060898,0.1,2561.3,2560.0,3.818]
[1723415061115,0.1,2560.9,2560.7,3.90511]
[1723415061303,0.2,2560.9,2560.3,3.90572]
[1723415061463,0.2,2560.6,2560.3,4.530622]
[1723415061774,0.1,2560.6,2560.3,3.98381002]
[1723415061972,0.1,2560.6,2560.3,3.98380002]
[1723415062171,0.1,2560.5,2560.3,3.9057]
[1723415062426,0.1,2560.5,2560.1,3.90599]
[1723415063310,0.1,2560.3,2559.9,3.90629]
[1723415063472,0.2,2560.3,2559.9,3.90629]
[1723415063817,0.1,2560.1,2559.7,3.90658]
[1723415063971,0.2,2560.3,2559.7,7.8132]
[1723415064171,0.1,2560.1,2559.8,3.90655]
[1723415064805,0.31544026,2560.6,2559.5,0.005]
[1723415064806,0.2,2559.6,2559.5,0.005]
[1723415065042,0.6388,2559.6,2559.5,0.005]
[1723415065249,0.1,2559.6,2559.5,0.005]
[1723415065952,0.1,2559.8,2559.5,0.005]
[1723415066256,0.1,2560.2,2559.5,0.005]
[1723415066547,0.1,2560.1,2559.9,3.9063]
[1723415066743,0.1,2560.1,2560.0,0.07811088]
[1723415066956,0.1,2560.1,2560.0,0.07811097]
[1723415067136,0.1,2560.1,2559.5,0.0831111]
[1723415067477,0.1,2560.3,2560.1,3.90597]
[1723415067614,0.1,2560.3,2560.1,0.85933181]
[1723415067814,0.2,2560.3,2560.0,3.98435979]
[1723415068049,0.1,2560.3,2560.0,0.07810979]
[1723415068271,0.2,2560.3,2560.0,3.98426979]
[1723415068552,0.1,2560.1,2560.0,0.07810979]
[1723415068958,0.1,2560.2,2559.9,0.07811023]
[1723415069115,0.1,2560.3,2559.9,0.32950125]
[1723415069458,0.2,2560.6,2559.9,0.32950125]
[1723415069657,0.1,2560.6,2560.3,3.9057]
[1723415069823,0.1,2560.6,2560.4,3.98371962]
[1723415070020,0.1,2560.6,2560.4,0.07809962]
[1723415070357,0.1,2560.6,2559.9,0.25139102]
[1723415070358,0.1,2560.1,2559.9,0.25139102]
[1723415070662,0.1,2560.2,2560.0,0.07811419]
[1723415070819,0.2,2560.2,2560.0,0.39844242]
[1723415071146,0.2,2560.2,2559.9,3.90636]
[1723415071524,0.2,2560.2,2559.7,7.72459]
[1723415071724,2.3811,2560.6,2559.4,2.2648]
[1723415071725,0.1,2559.8,2559.4,2.2648]
[1723415071928,0.2,2559.8,2559.3,3.9072]
[1723415072137,6.29099,2560.0,2559.2,3.90742]
[1723415072138,0.2,2559.6,2559.2,3.90742]
[1723415072659,0.2,2559.6,2559.3,3.90728]
[1723415073220,0.2,2559.6,2559.1,3.90755]
[1723415073468,0.2,2559.6,2559.1,3.90753]
[1723415073764,0.2,2559.6,2559.1,3.90752]
[1723415074258,0.2,2559.6,2559.1,3.90751]
[1723415074421,0.2,2559.6,2559.1,7.81503]
[1723415074621,0.2,2559.6,2559.0,3.90776]
[1723415074820,7.344798,2559.6,2558.9,7.8533995]
[1723415075124,2.6366,2559.6,2559.0,3.90773]
[1723415075421,2.6366,2559.6,2558.9,7.8533995]
[1723415075668,6.54346,2559.6,2558.9,7.8533995]
[1723415075867,2.6366,2559.6,2558.9,7.8533995]
[1723415076231,10.54799051,2559.6,2558.9,0.1275695]
[1723415076431,11.60278956,2559.6,2558.9,0.1275695]
[1723415076670,11.50278956,2559.6,2558.9,0.1275695]
[1723415076854,11.60278956,2559.6,2558.9,0.1275695]
[1723415077243,35.37964956,2559.6,2558.9,0.1275695]
[1723415077765,42.18650956,2559.6,2558.9,0.1275695]
[1723415078072,38.92964956,2559.6,2558.9,0.1275695]
[1723415078237,34.37511905,2559.6,2558.9,0.1275695]
[1723415079135,38.28197905,2559.6,2558.9,0.1275695]
[1723415079915,34.37511905,2559.6,2558.9,0.1275695]
[1723415081052,34.37511905,2559.6,2558.9,0.20571847]
[1723415081255,14.50511905,2559.6,2558.9,0.1275695]
[1723415082062,18.41197905,2559.6,2558.9,0.1275695]
[1723415082261,14.50511905,2559.6,2558.9,0.1275695]
[1723415082449,18.41197905,2559.6,2558.9,0.1275695]
[1723415084056,14.50511905,2559.6,2558.9,0.1275695]
[1723415084957,38.28197905,2559.6,2558.9,0.1275695]
[1723415085698,34.37511905,2559.6,2558.9,0.1275695]
[1723415086200,38.28197905,2559.6,2558.9,0.1275695]
[1723415086690,38.83197905,2559.6,2558.9,0.1275695]
[1723415089090,42.73883905,2559.6,2558.9,0.1275695]
[1723415089302,42.83883905,2559.6,2559.5,1e-05]
[1723415089453,42.73883905,2559.6,2559.5,1e-05]
[1723415090094,38.83197905,2559.6,2559.5,1e-05]
[1723415091061,38.28197905,2559.6,2559.5,1e-05]
[1723415091272,13.45032,2559.6,2559.5,1e-05]
[1723415091479,4.10686,2559.6,2559.5,1e-05]
[1723415091714,8.01372,2559.6,2559.5,1e-05]
[1723415092011,11.82058,2559.6,2559.5,1e-05]
[1723415092183,11.92058,2559.6,2559.5,1e-05]
[1723415092387,13.112638,2559.6,2559.5,1e-05]
[1723415092698,16.012638,2559.6,2559.5,1e-05]
[1723415092907,18.600538,2559.6,2559.5,1e-05]
[1723415093276,19.150538,2559.6,2559.5,1e-05]
[1723415093522,42.927398,2559.6,2559.5,1e-05]
[1723415096015,39.020538,2559.6,2559.5,1e-05]
[1723415097313,42.927398,2559.6,2559.5,1e-05]
[1723415097492,39.020538,2559.6,2559.5,1e-05]
[1723415099795,42.927398,2559.6,2559.5,1e-05]
[1723415100089,39.020538,2559.6,2559.5,1e-05]
[1723415100793,42.927398,2559.6,2559.5,1e-05]
[1723415102708,39.020538,2559.6,2559.5,1e-05]
[1723415102981,32.075778,2559.6,2559.5,1e-05]
[1723415103220,31.975778,2559.6,2559.5,1e-05]
[1723415103391,35.982638,2559.6,2559.5,1e-05]
[1723415103895,32.075778,2559.6,2559.5,1e-05]
[1723415104103,12.205778,2559.6,2559.5,1e-05]
[1723415104294,0.2,2559.6,2559.5,2.36381]
[1723415104494,0.1,2559.8,2559.5,2.36381]
[1723415104727,0.2,2559.8,2559.6,0.627088]
[1723415105028,0.1,2559.6,2559.5,2.36381]
[1723415105481,0.1,2559.8,2559.5,2.36381]
[1723415105683,0.1,2560.2,2559.6,3.98485286]
[1723415105910,0.2,2560.2,2559.8,2.3622]
[1723415106122,0.2,2560.4,2560.1,2.4556]
[1723415106344,0.2,2560.4,2560.1,3.09958252]
[1723415106552,0.1,2560.4,2560.1,3.17769649]
[1723415106843,0.1,2560.4,2560.3,3.90579]
[1723415107048,0.1,2560.6,2560.5,3.90538]
[1723415107250,0.1,2561.1,2560.5,6.43903732]
[1723415107564,0.1,2561.1,2560.9,2.4556]
[1723415107913,0.1,2561.0,2560.9,6.36047]
[1723415108112,0.1,2561.5,2560.9,6.36047]
[1723415108456,0.1,2561.4,2561.1,3.90446]
[1723415108655,0.1,2561.1,2561.0,0.636047]
[1723415108822,0.1,2561.1,2560.9,2.4556]
[1723415108823,0.1,2561.0,2560.9,2.4556]
[1723415109025,0.1,2560.6,2560.4,2.4556]
[1723415109233,0.1,2560.8,2560.5,3.90548]
[1723415110138,0.1,2560.8,2560.4,6.3612]
[1723415110312,0.1,2560.8,2560.5,0.636121]
[1723415111015,0.1,2560.7,2560.5,0.636121]
[1723415111350,0.1,2560.7,2560.5,4.541601]
[1723415111850,0.1,2560.7,2560.5,0.636121]
[1723415112053,0.1,2560.6,2560.5,0.636121]
[1723415112254,3.90424,2561.4,2560.4,2.4556]
[1723415112255,0.1,2560.5,2560.4,2.4556]
[1723415112831,0.2,2560.5,2560.4,2.4556]
[1723415113148,0.1,2560.5,2560.4,2.4556]
[1723415113368,0.1,2560.9,2560.4,3.091747]
[1723415113515,0.1,2561.1,2560.5,0.0780977]
[1723415113724,0.1,2561.0,2560.7,3.90508]
[1723415114068,0.1,2561.0,2560.9,2.3077]
[1723415114266,0.1,2561.2,2560.9,2.3077]
[1723415114426,0.1,2561.1,2561.0,0.07808421]
[1723415114632,0.2,2561.1,2561.0,0.07808421]
[1723415115165,0.1,2561.0,2560.9,2.3077]
[1723415115369,0.1,2561.0,2560.9,2.928971]
[1723415115568,0.2,2561.3,2560.9,6.91187179]
[1723415115769,0.2,2561.3,2561.0,3.9047]
[1723415115936,0.2,2561.3,2561.1,0.07808027]
[1723415116137,0.2,2561.5,2561.2,3.90441]
[1723415116358,0.2,2561.5,2561.3,0.07807556]
[1723415116559,0.1,2561.0,2560.9,2.3077]
[1723415117134,0.1,2561.3,2560.6,3.9053]
[1723415117135,0.1,2560.7,2560.6,3.9053]
[1723415117340,0.1,2560.7,2560.6,3.90533]
[1723415117547,0.1,2560.7,2560.6,4.93862698]
[1723415117962,0.1,2561.7,2560.7,2.3077]
[1723415118141,2.41719376,2563.3,2560.7,2.3077]
[1723415118142,0.1,2562.9,2562.5,3.90243]
[1723415118365,0.1,2562.9,2562.7,3.90202]
[1723415118681,0.6114001,2563.4,2562.7,6.2098]
[1723415118882,0.6114001,2563.4,2563.2,3.90123]
[1723415119181,0.1,2563.1,2562.9,3.90181]
[1723415119350,0.2,2563.1,2562.7,2.3077]
[1723415119553,0.1,2562.9,2562.5,3.90243]
[1723415119768,0.1,2563.1,2562.3,2.3077]
[1723415119769,0.1,2562.7,2562.4,3.90257]
[1723415120098,0.09753703,2563.1,2563.0,3.90167]
[1723415120393,0.2,2563.5,2563.0,2.697867]
[1723415120677,0.1,2563.5,2563.0,2.3077]
[1723415120979,0.2,2563.5,2563.1,3.90152]
[1723415121137,0.1,2563.5,2563.2,3.97938501]
[1723415121338,0.1,2563.6,2563.4,3.90106]
[1723415121649,0.1,2563.6,2563.2,4.5300685]
[1723415121650,0.1,2563.5,2563.2,4.5300685]
[1723415121989,0.1,2563.8,2563.3,0.07800894]
[1723415122152,0.2,2564.3,2563.8,3.90036]
[1723415122352,0.2,2564.1,2563.6,3.90073]
[1723415122566,0.2,2564.1,2563.2,3.843]
[1723415122567,0.1,2563.7,2563.3,0.3843]
[1723415122743,0.1,2563.7,2563.1,3.90151]
[1723415123270,7.37,2564.9,2563.6,3.843]
[1723415123434,0.1,2564.9,2564.6,3.89923]
[1723415123637,0.1,2564.9,2564.7,0.07797258]
[1723415123875,0.1,2565.3,2564.7,0.07797258]
[1723415123876,0.1,2565.1,2564.9,3.89866]
[1723415124036,0.2,2565.1,2564.9,0.07796529]
[1723415124237,0.2,2565.1,2565.0,3.89863]
[1723415124449,0.2,2565.1,2564.9,0.07796529]
[1723415124662,0.2,2565.1,2564.9,0.07796376]
[1723415125277,0.2,2565.1,2564.9,3.97671376]
[1723415125278,0.1,2565.1,2564.9,3.97671376]
[1723415125654,0.2,2565.6,2565.2,3.89833]
[1723415125867,0.2,2565.8,2565.3,0.07795699]
[1723415126041,0.1,2565.8,2565.5,3.89779]
[1723415126375,0.1,2565.6,2565.4,0.07794236]
[1723415126552,0.1,2565.5,2565.1,3.89841]
[1723415127087,0.1,2565.3,2565.2,0.0779481]
[1723415127249,0.4994808,2565.8,2565.2,0.0779481]
[1723415127453,0.1,2565.8,2565.3,3.97598134]
[1723415127655,0.1,2565.8,2565.2,3.89828]
[1723415127964,0.1,2565.7,2565.1,3.89846]
[1723415128282,0.1,2565.8,2565.1,3.89836]
[1723415128481,0.1,2565.8,2565.2,0.07794181]
[1723415128684,0.1,2565.6,2565.3,0.07795125]
[1723415128982,0.1,2565.6,2564.9,7.74168]
[1723415129155,0.1,2565.5,2564.9,7.74168]
[1723415129348,0.1,2565.5,2564.9,7.74166]
[1723415129688,0.1,2565.5,2565.0,0.07795021]
[1723415129689,0.1,2565.4,2565.0,0.07795021]
[1723415130176,0.499787,2565.4,2564.8,2.266]
[1723415130385,0.1,2565.3,2564.8,2.266]
[1723415130569,0.1,2565.2,2564.5,7.74233]
[1723415130740,0.1,2564.9,2564.6,3.89913]
[1723415132077,3.89894,2564.8,2564.2,3.8997]
[1723415132259,3.89955,2564.4,2563.8,6.19056]
[1723415132446,3.89955,2564.4,2563.8,2.2902]
[1723415132447,0.1,2564.3,2563.8,2.2902]
[1723415132641,0.1,2564.3,2563.6,7.8013]
[1723415132847,0.1,2564.3,2563.6,8.58143]
[1723415133043,0.1,2564.3,2563.7,3.90057]
[1723415133489,0.1,2564.3,2563.6,4.68078]
[1723415133653,0.1,2564.1,2563.6,0.78013]
[1723415133853,3.89988,2564.2,2563.6,0.78013]
[1723415134596,0.1,2564.1,2563.6,4.68088]
[1723415134748,0.1,2563.9,2563.6,4.68088]
[1723415135170,3.89988,2564.2,2563.6,4.68088]
[1723415135374,0.1,2563.9,2563.6,0.78013]
[1723415135882,3.89988,2564.2,2563.6,0.78013]
[1723415136082,0.1,2564.0,2563.5,3.0]
[1723415136290,3.90025,2564.0,2563.3,6.1332]
[1723415136650,4.00025,2564.0,2563.3,6.1332]
[1723415137287,0.1,2564.0,2563.4,3.90105]
[1723415137852,0.1,2564.0,2563.4,5.065583]
[1723415138252,3.89991,2564.2,2563.5,3.90088]
[1723415138452,0.1,2564.1,2563.6,3.90065]
[1723415138860,0.1,2563.9,2563.4,5.065503]
[1723415139064,0.1,2563.9,2563.5,3.9009]
[1723415139280,3.89998,2564.2,2563.4,1.164533]
[1723415139464,3.89998,2564.2,2563.4,5.065493]
[1723415139666,4.78965,2564.3,2563.5,1.2809603]
[1723415140035,4.0997,2564.3,2563.6,3.90067]
[1723415140297,3.89986,2564.2,2563.5,1.2809603]
[1723415140604,8.2098,2564.2,2563.4,3.90097]
[1723415140800,0.40997,2564.2,2563.3,3.843]
[1723415140952,0.1,2563.3,2562.5,6.2326]